[Event "*** Titled Tuesday Blitz"]
[Site "Chess.com"]
[Date "2020.11.24"]
[Round "4"]
[White "PriSachu"]
[Black "Deepweb2020"]
[Result "0-1"]
[WhiteElo "2529"]
[BlackElo "2279"]
[TimeControl "180+1"]
[EndTime "10:56:04 PST"]
[Termination "Deepweb2020 won by resignation"]

1. e4 {[%clk 0:02:57.1]} 1... e5 {[%clk 0:02:57.6]} 2. Nf3 {[%clk 0:02:56.3]}
2... Nc6 {[%clk 0:02:55.3]} 3. Bb5 {[%clk 0:02:55]} 3... a6 {[%clk 0:02:55.1]}
4. Ba4 {[%clk 0:02:54.5]} 4... Nf6 {[%clk 0:02:52.4]} 5. O-O {[%clk 0:02:53.9]}
5... b5 {[%clk 0:02:51.9]} 6. Bb3 {[%clk 0:02:53.4]} 6... Bc5 {[%clk 0:02:52.8]}
7. a4 {[%clk 0:02:51.4]} 7... Rb8 {[%clk 0:02:52.5]} 8. c3 {[%clk 0:02:50.1]}
8... d6 {[%clk 0:02:44.7]} 9. d4 {[%clk 0:02:47.1]} 9... Bb6 {[%clk 0:02:44.2]}
10. a5 {[%clk 0:02:37.9]} 10... Ba7 {[%clk 0:02:43.6]} 11. h3 {[%clk 0:02:37]}
11... h6 {[%clk 0:02:30.4]} 12. Be3 {[%clk 0:02:30.8]} 12... Ra8 {[%clk
0:02:26.2]} 13. Nbd2 {[%clk 0:02:25.3]} 13... O-O {[%clk 0:02:25.4]} 14. Re1
{[%clk 0:02:13.6]} 14... Re8 {[%clk 0:02:19.9]} 15. d5 {[%clk 0:02:01.2]} 15...
Ne7 {[%clk 0:02:00]} 16. Nf1 {[%clk 0:01:38.8]} 16... Ng6 {[%clk 0:01:57.7]} 17.
Qd2 {[%clk 0:01:26.7]} 17... Nxe4 {[%clk 0:01:51.9]} 18. Qd1 {[%clk 0:01:09.9]}
18... Bxe3 {[%clk 0:01:49.5]} 19. Nxe3 {[%clk 0:01:06.7]} 19... Nf4 {[%clk
0:01:35]} 20. Bc2 {[%clk 0:01:02.3]} 20... Ng5 {[%clk 0:01:28.2]} 21. Nxg5
{[%clk 0:00:49.8]} 21... Qxg5 {[%clk 0:01:29.1]} 22. Kh2 {[%clk 0:00:49.3]}
22... Qh4 {[%clk 0:01:11.5]} 23. Qf3 {[%clk 0:00:46.7]} 23... Bd7 {[%clk
0:01:03.2]} 24. Qg3 {[%clk 0:00:46.8]} 24... Qxg3+ {[%clk 0:00:59.2]} 25. fxg3
{[%clk 0:00:47.7]} 25... Nh5 {[%clk 0:00:53.2]} 26. Bd3 {[%clk 0:00:43.6]} 26...
Rab8 {[%clk 0:00:50.9]} 27. b4 {[%clk 0:00:43]} 27... Nf6 {[%clk 0:00:46.4]} 28.
Rab1 {[%clk 0:00:41.9]} 28... c6 {[%clk 0:00:38.9]} 29. c4 {[%clk 0:00:38.4]}
29... cxd5 {[%clk 0:00:34.7]} 30. cxd5 {[%clk 0:00:34.7]} 30... Rec8 {[%clk
0:00:33.8]} 31. Rec1 {[%clk 0:00:35.1]} 31... Kf8 {[%clk 0:00:33]} 32. g4 {[%clk
0:00:33.4]} 32... Rxc1 {[%clk 0:00:32.9]} 33. Rxc1 {[%clk 0:00:33.3]} 33... Rc8
{[%clk 0:00:32.8]} 34. Rxc8+ {[%clk 0:00:31.5]} 34... Bxc8 {[%clk 0:00:33.7]}
35. Bf5 {[%clk 0:00:31.6]} 35... Bb7 {[%clk 0:00:29.5]} 36. Kg3 {[%clk
0:00:29.1]} 36... g6 {[%clk 0:00:24.3]} 37. Bd3 {[%clk 0:00:28.2]} 37... Bxd5
{[%clk 0:00:21.6]} 38. h4 {[%clk 0:00:22.6]} 38... Bb7 {[%clk 0:00:18.8]} 39. g5
{[%clk 0:00:22.4]} 39... hxg5 {[%clk 0:00:19.7]} 40. hxg5 {[%clk 0:00:23.3]}
40... Nh5+ {[%clk 0:00:17.4]} 41. Kh4 {[%clk 0:00:23.6]} 41... Nf4 {[%clk
0:00:17.7]} 42. Bf1 {[%clk 0:00:23.7]} 42... Nd5 {[%clk 0:00:15.5]} 43. Ng4
{[%clk 0:00:23.5]} 43... Nxb4 {[%clk 0:00:14.9]} 44. Nf6 {[%clk 0:00:23.9]}
44... Nc6 {[%clk 0:00:13.3]} 45. Nd7+ {[%clk 0:00:23.8]} 45... Ke7 {[%clk
0:00:12.6]} 46. Nb6 {[%clk 0:00:24.7]} 46... Nxa5 {[%clk 0:00:11.7]} 47. g3
{[%clk 0:00:21.4]} 47... Nc4 {[%clk 0:00:11.2]} 48. Nxc4 {[%clk 0:00:21.3]}
48... bxc4 {[%clk 0:00:12.1]} 49. Bxc4 {[%clk 0:00:21.9]} 49... d5 {[%clk
0:00:11.9]} 50. Ba2 {[%clk 0:00:22.8]} 50... Kd6 {[%clk 0:00:11.5]} 51. Kg4
{[%clk 0:00:23.7]} 51... Bc6 {[%clk 0:00:10]} 52. Kf3 {[%clk 0:00:24.6]} 52...
Kc5 {[%clk 0:00:10.4]} 53. Ke2 {[%clk 0:00:25.1]} 53... Bb5+ {[%clk 0:00:10.9]}
54. Kd2 {[%clk 0:00:26]} 54... Bc4 {[%clk 0:00:11.5]} 55. Bb1 {[%clk 0:00:26.5]}
55... e4 {[%clk 0:00:11.1]} 56. Bc2 {[%clk 0:00:27.4]} 56... Kd4 {[%clk
0:00:11.6]} 57. Bd1 {[%clk 0:00:28.3]} 57... e3+ {[%clk 0:00:12.1]} 58. Ke1
{[%clk 0:00:28.1]} 58... Ke4 {[%clk 0:00:11.8]} 59. Be2 {[%clk 0:00:29]} 59...
Bxe2 {[%clk 0:00:11.5]} 60. Kxe2 {[%clk 0:00:28.9]} 60... a5 {[%clk 0:00:12]}
0-1

[Event "*** Titled Tuesday Blitz"]
[Site "Chess.com"]
[Date "2020.11.24"]
[Round "4"]
[White "Dedic8"]
[Black "ChessWarrior7197"]
[Result "1-0"]
[WhiteElo "2811"]
[BlackElo "2994"]
[TimeControl "180+1"]
[EndTime "10:56:07 PST"]
[Termination "Dedic8 won by resignation"]

1. e4 {[%clk 0:03:00.8]} 1... c6 {[%clk 0:02:59]} 2. d4 {[%clk 0:03:00.4]} 2...
d5 {[%clk 0:02:59.4]} 3. Nc3 {[%clk 0:03:00.3]} 3... dxe4 {[%clk 0:02:59.3]} 4.
Nxe4 {[%clk 0:02:58.6]} 4... Nf6 {[%clk 0:03:00]} 5. Nxf6+ {[%clk 0:02:58.3]}
5... exf6 {[%clk 0:03:00.9]} 6. c3 {[%clk 0:02:58.1]} 6... Bd6 {[%clk
0:03:00.2]} 7. Bd3 {[%clk 0:02:58.3]} 7... O-O {[%clk 0:03:00.3]} 8. Qc2 {[%clk
0:02:58.8]} 8... Re8+ {[%clk 0:02:59.8]} 9. Ne2 {[%clk 0:02:59.3]} 9... h5
{[%clk 0:03:00.7]} 10. Be3 {[%clk 0:02:59.5]} 10... Nd7 {[%clk 0:03:00.5]} 11.
O-O-O {[%clk 0:02:59.2]} 11... Nf8 {[%clk 0:03:01.1]} 12. c4 {[%clk 0:02:57.5]}
12... Be6 {[%clk 0:03:00.8]} 13. Nc3 {[%clk 0:02:52.4]} 13... Bb4 {[%clk
0:03:00.5]} 14. Kb1 {[%clk 0:02:47.8]} 14... Rc8 {[%clk 0:02:58.8]} 15. Ne4
{[%clk 0:02:30.5]} 15... b5 {[%clk 0:02:48.7]} 16. c5 {[%clk 0:02:27.3]} 16...
Re7 {[%clk 0:02:28.1]} 17. Nd6 {[%clk 0:02:21.8]} 17... Rb8 {[%clk 0:02:26.7]}
18. Bf4 {[%clk 0:02:15.6]} 18... Ba5 {[%clk 0:02:25.1]} 19. Be4 {[%clk
0:01:59.9]} 19... Bd7 {[%clk 0:01:45.2]} 20. d5 {[%clk 0:01:46.7]} 20... cxd5
{[%clk 0:01:45.5]} 21. Bxd5 {[%clk 0:01:47.4]} 21... Bc7 {[%clk 0:01:28]} 22. c6
{[%clk 0:01:18]} 22... Be6 {[%clk 0:01:24.3]} 23. Nxf7 {[%clk 0:01:12.7]} 23...
Qe8 {[%clk 0:01:12.7]} 24. Bxc7 {[%clk 0:01:09.8]} 24... Rxc7 {[%clk 0:01:11.1]}
25. Nd6 {[%clk 0:01:00.2]} 25... Qe7 {[%clk 0:01:10.4]} 26. Nf5 {[%clk
0:00:55.4]} 26... Qf7 {[%clk 0:01:05.9]} 27. Ne3 {[%clk 0:00:51.3]} 27... Rbc8
{[%clk 0:01:04.3]} 28. Qc5 {[%clk 0:00:41.1]} 28... Bxd5 {[%clk 0:00:45.4]} 29.
Nxd5 {[%clk 0:00:40]} 29... Ne6 {[%clk 0:00:46.1]} 30. Qd6 {[%clk 0:00:39]}
30... Rd8 {[%clk 0:00:38.6]} 31. Qb4 {[%clk 0:00:31.5]} 31... a5 {[%clk
0:00:19]} 32. Qxb5 {[%clk 0:00:31.9]} 32... Rcc8 {[%clk 0:00:18.6]} 33. Nb6
{[%clk 0:00:30.2]} 33... Rb8 {[%clk 0:00:14.7]} 34. Rxd8+ {[%clk 0:00:20]} 34...
Rxd8 {[%clk 0:00:15.6]} 35. Rc1 {[%clk 0:00:18.7]} 35... Qg6+ {[%clk 0:00:15.6]}
36. Ka1 {[%clk 0:00:18.2]} 36... Qc2 {[%clk 0:00:13.8]} 37. Qf1 {[%clk
0:00:18.1]} 37... Qe4 {[%clk 0:00:04]} 38. c7 {[%clk 0:00:17.4]} 38... Nxc7
{[%clk 0:00:04.4]} 39. Rxc7 {[%clk 0:00:18.3]} 39... Rd2 {[%clk 0:00:04.9]} 40.
Rc8+ {[%clk 0:00:15.5]} 40... Kh7 {[%clk 0:00:04.9]} 41. Qb1 {[%clk 0:00:12.6]}
41... Qxb1+ {[%clk 0:00:04.6]} 42. Kxb1 {[%clk 0:00:12.9]} 42... Rxf2 {[%clk
0:00:05.5]} 43. Rc2 {[%clk 0:00:12.9]} 43... Rf1+ {[%clk 0:00:05.9]} 44. Rc1
{[%clk 0:00:13.5]} 44... Rf2 {[%clk 0:00:06.8]} 45. Rg1 {[%clk 0:00:14.1]} 45...
g5 {[%clk 0:00:05.7]} 46. a4 {[%clk 0:00:14.6]} 46... Rf4 {[%clk 0:00:05]} 47.
b3 {[%clk 0:00:14.4]} 47... Rxa4 {[%clk 0:00:05]} 48. bxa4 {[%clk 0:00:12.9]}
1-0

[Event "*** Titled Tuesday Blitz"]
[Site "Chess.com"]
[Date "2020.11.24"]
[Round "4"]
[White "jacky72"]
[Black "beautroll"]
[Result "0-1"]
[WhiteElo "2691"]
[BlackElo "2425"]
[TimeControl "180+1"]
[EndTime "10:56:07 PST"]
[Termination "beautroll won by checkmate"]

1. d4 {[%clk 0:03:00.9]} 1... Nf6 {[%clk 0:02:59.8]} 2. c4 {[%clk 0:03:01.4]}
2... g6 {[%clk 0:02:59.5]} 3. Nc3 {[%clk 0:02:59.7]} 3... Bg7 {[%clk 0:02:58.7]}
4. e4 {[%clk 0:02:59.8]} 4... d6 {[%clk 0:02:58.4]} 5. Be2 {[%clk 0:02:59.9]}
5... O-O {[%clk 0:02:57.5]} 6. Bg5 {[%clk 0:03:00.4]} 6... c5 {[%clk 0:02:56.6]}
7. d5 {[%clk 0:02:57.4]} 7... h6 {[%clk 0:02:56.8]} 8. Be3 {[%clk 0:02:56.8]}
8... e6 {[%clk 0:02:56.9]} 9. Nf3 {[%clk 0:02:57.2]} 9... exd5 {[%clk
0:02:55.6]} 10. cxd5 {[%clk 0:02:57.3]} 10... b5 {[%clk 0:02:43.4]} 11. e5
{[%clk 0:02:56.3]} 11... Ng4 {[%clk 0:02:34.1]} 12. Nxb5 {[%clk 0:02:51.8]}
12... Nxe3 {[%clk 0:02:31.4]} 13. fxe3 {[%clk 0:02:50.8]} 13... Bg4 {[%clk
0:02:22.4]} 14. Nxd6 {[%clk 0:02:39.6]} 14... Bxe5 {[%clk 0:01:55.2]} 15. Nc4
{[%clk 0:02:29.6]} 15... Bxf3 {[%clk 0:01:48.7]} 16. gxf3 {[%clk 0:02:20.3]}
16... Qh4+ {[%clk 0:01:46.6]} 17. Kd2 {[%clk 0:02:19.9]} 17... Nd7 {[%clk
0:01:44.8]} 18. Qe1 {[%clk 0:02:11.5]} 18... Qf6 {[%clk 0:01:43.5]} 19. Kc2
{[%clk 0:02:07.7]} 19... Rab8 {[%clk 0:01:42.5]} 20. Rb1 {[%clk 0:02:07]} 20...
Nb6 {[%clk 0:01:38.5]} 21. Nxb6 {[%clk 0:02:02.6]} 21... Rxb6 {[%clk 0:01:39.3]}
22. b3 {[%clk 0:02:03.5]} 22... Rd8 {[%clk 0:01:37.4]} 23. f4 {[%clk 0:02:02.9]}
23... Bc7 {[%clk 0:01:30.8]} 24. Bf3 {[%clk 0:02:02.4]} 24... Qf5+ {[%clk
0:01:25.1]} 25. Kb2 {[%clk 0:02:01.6]} 25... c4 {[%clk 0:01:18]} 26. Qc3 {[%clk
0:01:57.9]} 26... Rc8 {[%clk 0:01:07]} 27. Ka1 {[%clk 0:01:49.5]} 27... Bd8
{[%clk 0:01:06.7]} 28. e4 {[%clk 0:01:35.5]} 28... Qxf4 {[%clk 0:01:05.6]} 29.
e5 {[%clk 0:01:36.1]} 29... cxb3 {[%clk 0:00:55.5]} 30. Qxc8 {[%clk 0:01:28.7]}
30... Qxe5+ {[%clk 0:00:46.3]} 31. Rb2 {[%clk 0:01:28.5]} 31... Rb8 {[%clk
0:00:38.3]} 32. Qc1 {[%clk 0:01:05.4]} 32... Bf6 {[%clk 0:00:33.2]} 33. Re1
{[%clk 0:01:05.8]} 33... Qf5 {[%clk 0:00:27.8]} 34. Be4 {[%clk 0:01:00.2]} 34...
Qf2 {[%clk 0:00:27.8]} 35. Rf1 {[%clk 0:00:36.3]} 35... Bxb2+ {[%clk 0:00:25.5]}
36. Kb1 {[%clk 0:00:36.9]} 36... Qe2 {[%clk 0:00:25.7]} 37. Qc7 {[%clk
0:00:27.5]} 37... bxa2+ {[%clk 0:00:25]} 38. Kxa2 {[%clk 0:00:26.5]} 38... Qa6+
{[%clk 0:00:23.6]} 39. Kb1 {[%clk 0:00:25.4]} 39... Qxf1+ {[%clk 0:00:23.6]} 40.
Kc2 {[%clk 0:00:24.7]} 40... Qb5 {[%clk 0:00:20.2]} 41. d6 {[%clk 0:00:21.3]}
41... Qb3+ {[%clk 0:00:20.1]} 42. Kd2 {[%clk 0:00:21.6]} 42... Qb4+ {[%clk
0:00:19.7]} 43. Ke3 {[%clk 0:00:21.5]} 43... Re8 {[%clk 0:00:19.6]} 44. Qc6
{[%clk 0:00:19.6]} 44... Qd4+ {[%clk 0:00:18.9]} 45. Kf3 {[%clk 0:00:19.5]}
45... Qd1+ {[%clk 0:00:18.3]} 46. Kf4 {[%clk 0:00:18.8]} 46... Be5+ {[%clk
0:00:16.9]} 47. Ke3 {[%clk 0:00:19.2]} 47... Qd4+ {[%clk 0:00:13.7]} 48. Kf3
{[%clk 0:00:19.2]} 48... Rd8 {[%clk 0:00:12.1]} 49. d7 {[%clk 0:00:19.6]} 49...
Qxd7 {[%clk 0:00:11.5]} 50. Qc5 {[%clk 0:00:18.6]} 50... Qd1+ {[%clk 0:00:10.9]}
51. Kg2 {[%clk 0:00:18.8]} 51... Rd2+ {[%clk 0:00:09.6]} 52. Kh3 {[%clk
0:00:18.8]} 52... Qf1+ {[%clk 0:00:09]} 53. Kh4 {[%clk 0:00:16.4]} 53... Qf4+
{[%clk 0:00:09]} 54. Kh3 {[%clk 0:00:16.5]} 54... Rxh2# {[%clk 0:00:09]} 0-1

[Event "*** Titled Tuesday Blitz"]
[Site "Chess.com"]
[Date "2020.11.24"]
[Round "4"]
[White "26andrej26"]
[Black "Training_Day"]
[Result "1/2-1/2"]
[WhiteElo "2514"]
[BlackElo "2350"]
[TimeControl "180+1"]
[EndTime "10:56:07 PST"]
[Termination "Game drawn by agreement"]

1. e4 {[%clk 0:03:00.9]} 1... e5 {[%clk 0:02:59.2]} 2. Nf3 {[%clk 0:03:00.9]}
2... Nc6 {[%clk 0:02:59.5]} 3. Bb5 {[%clk 0:03:01.4]} 3... Nf6 {[%clk
0:02:59.4]} 4. O-O {[%clk 0:03:01.3]} 4... Nxe4 {[%clk 0:02:59.2]} 5. d4 {[%clk
0:03:01.2]} 5... Nd6 {[%clk 0:02:58.6]} 6. Bxc6 {[%clk 0:03:01.6]} 6... dxc6
{[%clk 0:02:59.5]} 7. dxe5 {[%clk 0:03:02.3]} 7... Nf5 {[%clk 0:03:00.1]} 8.
Qxd8+ {[%clk 0:03:03.2]} 8... Kxd8 {[%clk 0:03:00.9]} 9. h3 {[%clk 0:03:04.1]}
9... Ke8 {[%clk 0:03:00.4]} 10. b3 {[%clk 0:02:53.9]} 10... Be7 {[%clk
0:02:49.5]} 11. c4 {[%clk 0:02:47.7]} 11... h6 {[%clk 0:02:28.7]} 12. Nc3 {[%clk
0:02:46.7]} 12... Be6 {[%clk 0:02:28.6]} 13. g4 {[%clk 0:02:39.3]} 13... Nh4
{[%clk 0:02:22.5]} 14. Nxh4 {[%clk 0:02:22.8]} 14... Bxh4 {[%clk 0:02:23.4]} 15.
f4 {[%clk 0:02:15.4]} 15... Rd8 {[%clk 0:02:18.7]} 16. Ne4 {[%clk 0:01:53.1]}
16... Rd4 {[%clk 0:02:04.7]} 17. Nc5 {[%clk 0:01:49.3]} 17... Bc8 {[%clk
0:02:02]} 18. Be3 {[%clk 0:01:49.2]} 18... Rd8 {[%clk 0:01:55.9]} 19. Rad1
{[%clk 0:01:49.3]} 19... h5 {[%clk 0:01:32.9]} 20. f5 {[%clk 0:01:42.3]} 20...
hxg4 {[%clk 0:01:31.5]} 21. hxg4 {[%clk 0:01:43.2]} 21... Rxd1 {[%clk
0:01:28.3]} 22. Rxd1 {[%clk 0:01:43.3]} 22... Be7 {[%clk 0:01:21.5]} 23. Kg2
{[%clk 0:01:38.7]} 23... g6 {[%clk 0:00:59.8]} 24. fxg6 {[%clk 0:01:27.5]} 24...
fxg6 {[%clk 0:00:54.4]} 25. e6 {[%clk 0:01:10.1]} 25... Bxc5 {[%clk 0:00:43.1]}
26. Bxc5 {[%clk 0:01:11]} 26... Bxe6 {[%clk 0:00:43.5]} 27. Kg3 {[%clk
0:01:09.2]} 27... b6 {[%clk 0:00:27.2]} 28. Re1 {[%clk 0:01:00.5]} 28... Kf7
{[%clk 0:00:21.7]} 29. Rf1+ {[%clk 0:00:55.6]} 29... Ke8 {[%clk 0:00:20.2]} 30.
Bd4 {[%clk 0:00:55.9]} 30... Rf8 {[%clk 0:00:16]} 31. Rxf8+ {[%clk 0:00:53.5]}
31... Kxf8 {[%clk 0:00:16.1]} 32. Be5 {[%clk 0:00:54.4]} 32... b5 {[%clk
0:00:07.7]} 33. cxb5 {[%clk 0:00:42]} 33... cxb5 {[%clk 0:00:08.6]} 34. Bxc7
{[%clk 0:00:42.7]} 34... a5 {[%clk 0:00:08.5]} 35. Bxa5 {[%clk 0:00:42.2]} 35...
Ke7 {[%clk 0:00:07.3]} 36. Bb4+ {[%clk 0:00:39.1]} 36... Kd7 {[%clk 0:00:07.4]}
37. Kf4 {[%clk 0:00:39.7]} 37... Kc6 {[%clk 0:00:07.3]} 38. Bf8 {[%clk
0:00:31.4]} 38... Kb6 {[%clk 0:00:07.3]} 39. Kg5 {[%clk 0:00:24]} 39... Ka6
{[%clk 0:00:06.8]} 40. b4 {[%clk 0:00:16.8]} 40... Bd7 {[%clk 0:00:05.3]} 41.
Bc5 {[%clk 0:00:12.2]} 41... Bc8 {[%clk 0:00:05.6]} 42. Kf4 {[%clk 0:00:11.8]}
42... Bd7 {[%clk 0:00:06]} 43. g5 {[%clk 0:00:11.6]} 43... Bf5 {[%clk
0:00:06.1]} 44. Ke5 {[%clk 0:00:11.6]} 44... Bb1 {[%clk 0:00:06.1]} 45. a3
{[%clk 0:00:12]} 45... Bf5 {[%clk 0:00:06.6]} 46. Kd6 {[%clk 0:00:12.7]} 46...
Bb1 {[%clk 0:00:06.8]} 47. Kc6 {[%clk 0:00:13.1]} 47... Bf5 {[%clk 0:00:07.4]}
48. a4 {[%clk 0:00:12.1]} 48... Be4+ {[%clk 0:00:07]} 49. Kd6 {[%clk 0:00:10.1]}
49... bxa4 {[%clk 0:00:07.4]} 50. Ke5 {[%clk 0:00:10.3]} 50... Bf5 {[%clk
0:00:06.3]} 51. Kd4 {[%clk 0:00:08.9]} 51... Kb5 {[%clk 0:00:07.2]} 52. Kc3
{[%clk 0:00:08.6]} 52... Be6 {[%clk 0:00:06.9]} 53. Kb2 {[%clk 0:00:08.6]} 53...
Bf5 {[%clk 0:00:07.1]} 54. Ka3 {[%clk 0:00:08.5]} 54... Be6 {[%clk 0:00:07.5]}
55. Bf8 {[%clk 0:00:07.7]} 1/2-1/2

[Event "*** Titled Tuesday Blitz"]
[Site "Chess.com"]
[Date "2020.11.24"]
[Round "4"]
[White "Alexander_Kachko"]
[Black "pelmerch"]
[Result "1-0"]
[WhiteElo "2779"]
[BlackElo "2518"]
[TimeControl "180+1"]
[EndTime "10:56:09 PST"]
[Termination "Alexander_Kachko won on time"]

1. e4 {[%clk 0:03:00.9]} 1... e5 {[%clk 0:02:59.6]} 2. Nf3 {[%clk 0:03:00.9]}
2... Nc6 {[%clk 0:03:00.1]} 3. Bc4 {[%clk 0:03:00.9]} 3... Nf6 {[%clk
0:02:59.8]} 4. d3 {[%clk 0:02:58.9]} 4... Be7 {[%clk 0:02:58.8]} 5. c3 {[%clk
0:02:58.4]} 5... O-O {[%clk 0:02:58.7]} 6. Bb3 {[%clk 0:02:58.3]} 6... d6 {[%clk
0:02:57.7]} 7. Nbd2 {[%clk 0:02:58.1]} 7... h6 {[%clk 0:02:57.3]} 8. Nf1 {[%clk
0:02:56]} 8... Nh7 {[%clk 0:02:56.6]} 9. Ng3 {[%clk 0:02:55.1]} 9... Ng5 {[%clk
0:02:57]} 10. Nd2 {[%clk 0:02:55]} 10... Kh7 {[%clk 0:02:37]} 11. O-O {[%clk
0:02:53.8]} 11... Ne6 {[%clk 0:02:32.4]} 12. Nf5 {[%clk 0:02:47.3]} 12... Nf4
{[%clk 0:02:29.2]} 13. Bc2 {[%clk 0:02:43]} 13... g6 {[%clk 0:02:20]} 14. Nxe7
{[%clk 0:02:41.9]} 14... Qxe7 {[%clk 0:02:19.1]} 15. Nc4 {[%clk 0:02:39.6]}
15... f5 {[%clk 0:02:12.4]} 16. Bxf4 {[%clk 0:02:38.6]} 16... exf4 {[%clk
0:02:11.4]} 17. exf5 {[%clk 0:01:53.8]} 17... Bxf5 {[%clk 0:02:12.3]} 18. d4
{[%clk 0:01:53.3]} 18... Bxc2 {[%clk 0:02:08.7]} 19. Qxc2 {[%clk 0:01:54.2]}
19... f3 {[%clk 0:02:09.2]} 20. g3 {[%clk 0:01:52.7]} 20... Qe6 {[%clk
0:02:01.8]} 21. Ne3 {[%clk 0:01:50.3]} 21... Rae8 {[%clk 0:01:59.7]} 22. Kh1
{[%clk 0:01:23.9]} 22... Qh3 {[%clk 0:01:55.9]} 23. Rg1 {[%clk 0:01:24]} 23...
Ne7 {[%clk 0:01:26.7]} 24. Qd3 {[%clk 0:01:20.6]} 24... Nf5 {[%clk 0:01:24.6]}
25. Rae1 {[%clk 0:01:19.6]} 25... Re7 {[%clk 0:00:48.1]} 26. Qf1 {[%clk
0:01:09.1]} 26... Qxf1 {[%clk 0:00:42.7]} 27. Rgxf1 {[%clk 0:01:09]} 27... Rfe8
{[%clk 0:00:29.1]} 28. Kg1 {[%clk 0:00:31.9]} 28... Nxe3 {[%clk 0:00:27.6]} 29.
fxe3 {[%clk 0:00:30.3]} 29... Rxe3 {[%clk 0:00:28.5]} 30. Rxe3 {[%clk
0:00:27.5]} 30... Rxe3 {[%clk 0:00:29.4]} 31. Kf2 {[%clk 0:00:23.3]} 31... Re2+
{[%clk 0:00:29.1]} 32. Kxf3 {[%clk 0:00:23.4]} 32... Rxb2 {[%clk 0:00:29.8]} 33.
Re1 {[%clk 0:00:23.6]} 33... g5 {[%clk 0:00:26.6]} 34. Re7+ {[%clk 0:00:23]}
34... Kg6 {[%clk 0:00:27.1]} 35. Rxc7 {[%clk 0:00:23.1]} 35... Rxh2 {[%clk
0:00:22]} 36. Rxb7 {[%clk 0:00:23]} 36... Rxa2 {[%clk 0:00:21.9]} 37. g4 {[%clk
0:00:23.5]} 37... h5 {[%clk 0:00:19.7]} 38. gxh5+ {[%clk 0:00:23]} 38... Kxh5
{[%clk 0:00:20.6]} 39. Kg3 {[%clk 0:00:22.4]} 39... Rc2 {[%clk 0:00:17.9]} 40.
Rc7 {[%clk 0:00:22.5]} 40... a5 {[%clk 0:00:16.9]} 41. Kf3 {[%clk 0:00:21.1]}
41... a4 {[%clk 0:00:17.1]} 42. Ke4 {[%clk 0:00:21.4]} 42... a3 {[%clk
0:00:15.8]} 43. Kd3 {[%clk 0:00:21.7]} 43... a2 {[%clk 0:00:15.2]} 44. Ra7
{[%clk 0:00:21.9]} 44... Rb2 {[%clk 0:00:14.9]} 45. c4 {[%clk 0:00:21.5]} 45...
g4 {[%clk 0:00:15.1]} 46. c5 {[%clk 0:00:21.9]} 46... dxc5 {[%clk 0:00:15.6]}
47. dxc5 {[%clk 0:00:22.2]} 47... g3 {[%clk 0:00:14.8]} 48. c6 {[%clk
0:00:20.9]} 48... g2 {[%clk 0:00:15]} 49. Ra5+ {[%clk 0:00:20.2]} 49... Kh4
{[%clk 0:00:13.4]} 50. Ra4+ {[%clk 0:00:17.6]} 50... Kh3 {[%clk 0:00:12.7]} 51.
c7 {[%clk 0:00:17.5]} 51... Rb3+ {[%clk 0:00:06.9]} 52. Kc2 {[%clk 0:00:16.7]}
52... a1=Q {[%clk 0:00:06.3]} 53. c8=Q+ {[%clk 0:00:15.9]} 53... Kh2 {[%clk
0:00:04.9]} 54. Rxa1 {[%clk 0:00:15.3]} 1-0